lending/lending_fUSD_20250318
["ID","MTS","AMOUNT","RATE_DAILY","PERIOD"]
[356355930,1742332257439,-150.0,0.00019764,4]
[356355931,1742332257448,-150.0,0.00019818,4]
[356355932,1742332257458,-100000.0,0.0001988,2]
[356355933,1742332257467,-151.0,0.0001988,2]
[356355934,1742332257476,-151.0,0.0001988,2]
[356355935,1742332257485,-151.0,0.0001988,2]
[356355936,1742332257495,-270.350595,0.0001988,2]
[356355937,1742332257507,-151.0,0.0001988,2]
[356355938,1742332257517,-4714.91947007,0.000199,3]
[356355939,1742332257526,-164.634967,0.00019926,2]
[356355940,1742332257536,-322.74972886,0.0001995,4]
[356355942,1742332257546,-216.46314616,0.0001995,4]
[356355943,1742332257556,-883.59440609,0.0002,10]
[356355944,1742332257565,-17000.0,0.0002,2]
[356355945,1742332257575,-2000.0,0.0002,2]
[356355946,1742332257585,-151.0,0.0002,2]
[356355947,1742332257595,-151.0,0.0002,2]
[356355948,1742332257606,-151.0,0.0002,2]
[356355949,1742332257615,-252.6776732,0.0002,2]
[356355950,1742332257624,-242.20660392,0.0002,2]
[356355951,1742332257633,-159.0,0.0002,2]
[356355952,1742332257642,-151.0,0.0002,2]
[356355953,1742332257652,-151.0,0.0002,2]
[356355954,1742332257662,-2000.0,0.0002,4]
[356355955,1742332257671,-3347.838569,0.0002001,2]
[356355956,1742332257680,-150.0,0.00020052,4]
[356355957,1742332257689,-150.0,0.00020052,4]
[356355958,1742332257699,-3000.0,0.000201,2]
[356355959,1742332257709,-322.74972886,0.00020153,4]
[356355960,1742332257719,-216.46314616,0.00020153,4]
[356355961,1742332257728,-150.0,0.00020285,4]
[356355962,1742332257738,-150.0,0.00020339,4]
[356355963,1742332257747,-322.74972886,0.00020356,4]
[356355964,1742332257757,-216.46314616,0.00020356,4]
[356355965,1742332257766,-150.0,0.00020519,4]
[356355966,1742332257775,-174.35,0.00020548,2]
[356355967,1742332257785,-322.74972886,0.00020559,4]
[356355969,1742332257795,-216.46314616,0.00020559,4]
[356355970,1742332257804,-150.0,0.00020565,2]
[356355971,1742332257813,-441.21,0.00020565,2]
[356355972,1742332257823,-218.0,0.0002057,2]
[356355973,1742332257832,-150.0,0.00020753,4]
[356355974,1742332257842,-322.74972886,0.00020762,4]
[356355975,1742332257852,-216.46314616,0.00020762,4]
[356355976,1742332257861,-150.0,0.00020913,4]
[356355977,1742332257870,-322.74972886,0.00020965,4]
[356355978,1742332257881,-216.46314616,0.00020965,4]
[356355979,1742332257890,-150.0,0.00020987,4]
[356355980,1742332257900,-219.0,0.00021,2]
[356355981,1742332257912,-31382.86930262,0.00021,2]
[356355986,1742332259073,-85327.58588927,0.00021,2]
[356355987,1742332259084,-151.0,0.00021,2]
[356355989,1742332259096,-151.0,0.00021,2]
[356355990,1742332259107,-151.0,0.00021,2]
[356355991,1742332259119,-550.0,0.00021,2]
[356355992,1742332259130,-2000.0,0.00021,4]
[356355993,1742332259141,-322.74972886,0.00021168,4]
[356355994,1742332259153,-216.46314616,0.00021168,4]
[356355995,1742332259164,-150.0,0.0002122,4]
[356355996,1742332259175,-1681.8,0.00021266,2]
[356355997,1742332259186,-840.86,0.000213,14]
[356355998,1742332259197,-151.0,0.00021319,2]
[356355999,1742332259208,-1600.0,0.00021348,7]
[356356000,1742332259220,-151.0,0.00021348,2]
[356356001,1742332259231,-151.0,0.00021348,2]
[356356002,1742332259243,-5000.0,0.0002135,37]
[356356003,1742332259254,-322.74972886,0.00021371,4]
[356356004,1742332259266,-216.46314616,0.00021371,4]
[356356005,1742332259277,-2000.0,0.00021393,2]
[356356006,1742332259288,-2000.0,0.00021393,2]
[356356007,1742332259299,-2000.0,0.00021393,2]
[356356008,1742332259310,-150.0,0.00021454,4]
[356356009,1742332259320,-150.0,0.00021487,4]
[356356010,1742332259333,-6309.36781252,0.000215,30]
[356356011,1742332259343,-1129.91514658,0.00021531,2]
[356356012,1742332259354,-322.74972886,0.00021574,4]
[356356013,1742332259366,-216.46314616,0.00021574,4]
[356356014,1742332259377,-218.0,0.000216,2]
[356356015,1742332259388,-151.0,0.00021672,2]
[356356016,1742332259400,-150.0,0.00021688,4]
[356356017,1742332259411,-450.0,0.00021759,4]
[356356018,1742332259423,-322.74972886,0.00021778,4]
[356356020,1742332259434,-216.46314616,0.00021778,4]
[356356021,1742332259445,-19903.8210448,0.00021884,7]
[356356022,1742332259456,-335.8875046,0.00021884,7]
[356356023,1742332259468,-59253.280975,0.00021884,7]
[356356024,1742332259480,-401.23,0.00021917,2]
[356356025,1742332259491,-2000.0,0.00021918,13]
[356356026,1742332259503,-2000.0,0.00021918,13]
[356356027,1742332259515,-2000.0,0.00021918,13]
[356356028,1742332259526,-2000.0,0.00021918,13]
[356356029,1742332259538,-2000.0,0.00021918,13]
[356356030,1742332259549,-2000.0,0.00021918,13]
[356356031,1742332259559,-2000.0,0.00021918,13]
[356356032,1742332259571,-2000.0,0.00021918,13]
[356356033,1742332259583,-2000.0,0.00021918,13]
[356356034,1742332259593,-2000.0,0.00021918,13]
[356356035,1742332259604,-2000.0,0.00021918,13]
[356356036,1742332259615,-2000.0,0.00021918,13]
[356356037,1742332259626,-2000.0,0.00021918,13]
[356356038,1742332259637,-2000.0,0.00021918,13]
[356356039,1742332259648,-2000.0,0.00021918,13]
[356356040,1742332259659,-300.0,0.00021918,13]
[356356041,1742332259671,-151.0,0.00021918,7]
[356356042,1742332259684,-151.0,0.00021918,7]
[356356043,1742332259695,-151.0,0.00021918,7]
[356356044,1742332259706,-150.0,0.00021922,4]
[356356045,1742332259717,-181.0,0.0002197,30]
[356356047,1742332259729,-181.0,0.0002197,30]
[356356048,1742332259739,-450.0,0.00021976,4]
[356356049,1742332259751,-181.0,0.0002198,30]
[356356050,1742332259762,-181.0,0.0002198,30]
[356356051,1742332259773,-181.0,0.0002198,30]
[356356052,1742332259784,-187.0,0.0002198,30]
[356356053,1742332259801,-322.74972886,0.00021981,4]
[356356054,1742332259812,-216.46314616,0.00021981,4]
[356356055,1742332259823,-1083.44986066,0.0002199,2]
[356356056,1742332259834,-200.0,0.0002199,2]
[356356057,1742332259845,-181.0,0.0002199,30]
[356356058,1742332259856,-181.0,0.0002199,30]
[356356059,1742332259867,-181.0,0.0002199,30]
[356356060,1742332259879,-181.0,0.0002199,30]
[356356061,1742332259890,-3352.0,0.00022,14]
[356356062,1742332259901,-32385.3,0.00022,2]
[356356063,1742332259912,-2000.0,0.00022,4]
[356356064,1742332259923,-2310.2396946,0.00022,120]
[356356065,1742332259934,-1415.7510448,0.00022,120]
[356356066,1742332259950,-1585.63883431,0.00022,120]
[356356067,1742332259962,-150.0,0.00022062,4]
[356356068,1742332259975,-150.0,0.00022155,4]
[356356069,1742332259986,-322.74972886,0.00022184,4]
[356356070,1742332259997,-216.46314616,0.00022184,4]
[356356071,1742332260009,-600.0,0.00022194,6]
[356356072,1742332260021,-200.0,0.0002221,2]
[356356073,1742332260032,-322.74972886,0.00022387,4]
[356356074,1742332260044,-216.46314616,0.00022387,4]
[356356075,1742332260057,-150.0,0.00022389,4]
[356356077,1742332260070,-5000.0,0.000225,7]
[356356078,1742332260081,-322.74972886,0.0002259,4]
[356356079,1742332260092,-216.46314616,0.0002259,4]
[356356080,1742332260105,-150.0,0.00022623,4]
[356356081,1742332260116,-218.0,0.0002263,2]
[356356082,1742332260128,-150.0,0.00022636,4]
[356356083,1742332260139,-322.74972886,0.00022793,4]
[356356084,1742332260151,-216.46314616,0.00022793,4]
[356356085,1742332260163,-3000.0,0.000228,2]
[356356086,1742332260174,-1500.0,0.000228,2]
[356356087,1742332260186,-150.0,0.00022857,4]
[356356088,1742332260198,-322.74972886,0.00022996,4]
[356356089,1742332260210,-216.46314616,0.00022996,4]
[356356090,1742332260221,-350.0,0.00023,7]
[356356091,1742332260234,-5000.0,0.00023,7]
[356356092,1742332260245,-330.0,0.00023,2]
[356356093,1742332260257,-600.0,0.00023,2]
[356356094,1742332260269,-2000.0,0.00023,4]
[356356095,1742332260281,-153.0,0.00023,2]
[356356096,1742332260293,-5800.0,0.0002309,2]
[356356097,1742332260304,-150.0,0.0002309,4]
[356356098,1742332260317,-5800.0,0.00023099,2]
[356356099,1742332260329,-500.0,0.000231,30]
[356356100,1742332260341,-500.0,0.000231,30]
[356356101,1742332260352,-500.0,0.000231,30]
[356356102,1742332260364,-500.0,0.000231,30]
[356356104,1742332260374,-500.0,0.000231,30]
[356356105,1742332260386,-500.0,0.000231,30]
[356356106,1742332260398,-500.0,0.000231,30]
[356356108,1742332260926,-500.0,0.000231,30]
[356356110,1742332260959,-500.0,0.000231,30]
[356356111,1742332260983,-500.0,0.000231,30]
[356356112,1742332260996,-500.0,0.000231,30]
[356356113,1742332261006,-500.0,0.000231,30]
[356356114,1742332261016,-500.0,0.000231,30]
[356356115,1742332261027,-500.0,0.000231,30]
[356356116,1742332261037,-911.29879426,0.000231,30]
[356356117,1742332261048,-500.0,0.000231,30]
[356356118,1742332261057,-500.0,0.000231,30]
[356356119,1742332261067,-500.0,0.000231,30]
[356356120,1742332261076,-975.48648796,0.000231,30]
[356356121,1742332261086,-5800.0,0.00023107,2]
[356356122,1742332261096,-5800.0,0.00023116,2]
[356356123,1742332261106,-5800.0,0.00023124,2]
[356356124,1742332261115,-5800.0,0.00023133,2]
[356356125,1742332261124,-5800.0,0.00023141,2]
[356356126,1742332261134,-5800.0,0.0002315,2]
[356356127,1742332261144,-5800.0,0.00023158,2]
[356356128,1742332261153,-5800.0,0.00023167,2]
[356356129,1742332261163,-5800.0,0.00023175,2]
[356356130,1742332261173,-322.74972886,0.00023199,4]
[356356131,1742332261182,-216.46314616,0.00023199,4]
[356356132,1742332261192,-150.0,0.00023211,4]
[356356133,1742332261202,-4399.56808346,0.00023281,2]
[356356134,1742332261211,-401.23,0.00023287,2]
[356356135,1742332261222,-150.27,0.00023288,2]
[356356136,1742332261231,-330.0,0.00023288,2]
[356356137,1742332261241,-150.0,0.00023324,4]
[356356138,1742332261251,-322.74972886,0.00023402,4]
[356356139,1742332261260,-216.46314616,0.00023402,4]
[356356140,1742332261269,-150.0,0.00023402,4]
[356356142,1742332261279,-1681.8,0.00023441,2]
[356356143,1742332261289,-152.0,0.00023477,3]
[356356144,1742332261298,-5000.0,0.000235,7]
[356356145,1742332261308,-150.0,0.00023558,4]
[356356146,1742332261317,-322.74972886,0.00023605,4]
[356356147,1742332261326,-216.46314616,0.00023605,4]
[356356148,1742332261336,-218.0,0.0002366,2]
[356356149,1742332261346,-150.0,0.00023785,4]
[356356150,1742332261356,-150.0,0.00023792,4]
[356356151,1742332261366,-322.74972886,0.00023808,4]
[356356152,1742332261376,-216.46314616,0.00023808,4]
[356356153,1742332261385,-1071.8,0.00023836,2]
[356356154,1742332261395,-2000.0,0.00023919,5]
[356356155,1742332261404,-500.0,0.00024,2]
[356356156,1742332261414,-2165.26,0.00024,2]
[356356157,1742332261423,-505.5069104,0.00024,2]
[356356158,1742332261433,-2000.0,0.00024,4]
[356356159,1742332261443,-322.74972886,0.00024011,4]
[356356160,1742332261453,-216.46314616,0.00024011,4]
[356356161,1742332261462,-921.1882,0.0002402,2]
[356356162,1742332261472,-150.0,0.00024025,4]
[356356163,1742332261482,-600.0,0.00024109,2]
[356356164,1742332261491,-600.0,0.00024109,2]
[356356165,1742332261502,-600.0,0.00024109,2]
[356356166,1742332261514,-600.0,0.00024109,2]
[356356167,1742332261524,-600.0,0.00024109,2]
[356356168,1742332261534,-600.0,0.00024109,2]
[356356169,1742332261544,-330.0,0.00024164,2]
[356356170,1742332261554,-322.74972886,0.00024214,4]
[356356172,1742332261564,-216.46314616,0.00024214,4]
[356356173,1742332261574,-150.0,0.00024259,4]
[356356174,1742332261585,-150.0,0.00024359,4]
[356356175,1742332261595,-322.74972886,0.00024417,4]
[356356176,1742332261604,-216.46314616,0.00024417,4]
[356356177,1742332261614,-150.0,0.00024493,4]
[356356178,1742332261624,-600.0,0.00024499,2]
[356356179,1742332261633,-15000.0,0.000245,7]
[356356180,1742332261643,-322.74972886,0.0002462,4]
[356356181,1742332261653,-216.46314616,0.0002462,4]
[356356182,1742332261663,-401.23,0.00024657,2]
[356356183,1742332261672,-150.0,0.00024658,2]
[356356184,1742332261683,-1000.0,0.00024658,2]
[356356185,1742332261692,-150.0,0.00024672,2]
[356356186,1742332261703,-943.0,0.000247,2]
[356356187,1742332261712,-218.0,0.000247,2]
[356356188,1742332261723,-962.76,0.00024712,30]
[356356189,1742332261732,-150.0,0.00024727,4]
[356356190,1742332261742,-500.0,0.000248,28]
[356356191,1742332261752,-164.634967,0.000248,3]
[356356192,1742332261762,-568211.00691997,0.000248,3]
[356356195,1742332262343,-692.07790826,9.04e-05,2]
[356356196,1742332262356,-87.79209174,9.04e-05,2]
[356356197,1742332262368,-442.45,9.04e-05,2]
[356356198,1742332262379,-150.0,9.151e-05,2]
[356356200,1742332262389,-3440.73340826,0.000248,3]
[356356239,1742333229728,216.76829367,0.00021,120]
[356356241,1742333256391,400.0,0.0001,3]
[356356306,1742333322985,1023.59510949,0.00015,30]
[356356329,1742333390273,-7375.8025731,0.00029715,120]
[356356330,1742333390298,-154.22679166,0.00029715,30]
[356356331,1742333390322,-163.06785166,0.00029715,120]
[356356332,1742333390345,-345.81162008,0.00029715,30]
[356356333,1742333390375,-50000.0,0.00029715,30]
[356356334,1742333390399,-50000.0,0.00029715,31]
[356356335,1742333390424,-50000.0,0.00029715,32]
[356356336,1742333390448,-50000.0,0.00029715,33]
[356356337,1742333390475,-50000.0,0.00029715,34]
[356356338,1742333390499,-279.46202644,0.00029715,120]
[356356339,1742333390524,-1009.39073576,0.00029715,30]
[356356340,1742333390548,-4198.4554649,0.00029715,30]
[356356341,1742333390572,-1117.97530097,0.00029715,30]
[356356342,1742333390598,-105726.96859963,0.00029715,30]
[356356343,1742333390622,-251.80055619,0.00029715,60]
[356356344,1742333390648,-6972.60189947,0.00029715,120]
[356356345,1742333390673,-299.52548661,0.00029715,120]
[356356346,1742333390697,-7500.000001,0.00029715,30]
[356356347,1742333390722,-106433.66974776,0.00029715,30]
[356356348,1742333390747,-150.0,0.00029715,30]
[356356349,1742333390770,-179.19193255,0.00029715,120]
[356356350,1742333390795,-724.55380119,0.00029715,120]
[356356351,1742333390821,-6900.0,0.00029715,120]
[356356352,1742333390844,-970.17900728,0.00029715,110]
[356356353,1742333390867,-180413.78257555,0.00029715,30]
[356356354,1742333390895,-183.0,0.00029715,120]
[356356355,1742333390917,-4499.75,0.00029715,30]
[356356356,1742333390941,-51165.47469844,0.00029715,30]
[356356357,1742333390965,-2266.12304389,0.00029715,34]
[356356358,1742333390991,-110739.1036735,0.00029715,30]
[356356359,1742333391016,-90174.27020985,0.00029715,120]
[356356360,1742333391040,-5000.0,0.00029715,120]
[356356361,1742333391065,-1200.0,0.00029715,31]
[356356362,1742333391090,-538.61881371,0.00029715,120]
[356356363,1742333391113,-13032.54463844,0.00029715,30]
[356356364,1742333391570,-1046.0,0.00029715,120]
[356356365,1742333391601,-152051.85146325,0.00029715,60]
[356356366,1742333391626,-1000.0,0.00029715,30]
[356356367,1742333391651,-1000.0,0.00029715,30]
[356356368,1742333391676,-1000.0,0.00029715,30]
[356356369,1742333391700,-1000.0,0.00029715,30]
[356356370,1742333391725,-1000.0,0.00029715,30]
[356356371,1742333391750,-1000.0,0.00029715,30]
[356356372,1742333391774,-1000.0,0.00029715,30]
[356356373,1742333391799,-1000.0,0.00029715,30]
[356356374,1742333391823,-672.89461472,0.00029715,30]
[356356375,1742333391848,-1000.0,0.00029715,30]
[356356376,1742333391873,-1000.0,0.00029715,30]
[356356377,1742333391901,-202.17391395,0.00029715,30]
[356356378,1742333391927,-204.9,0.00029715,30]
[356356379,1742333391951,-204.9,0.00029715,30]
[356356380,1742333391979,-1048.53725556,0.00029715,90]
[356356381,1742333392003,-14149.19019566,0.00029715,30]
[356356382,1742333392028,-999.999997,0.00029715,120]
[356356383,1742333392053,-508.27352811,0.00029715,30]
[356356384,1742333392078,-379.87114716,0.00029715,30]
[356356385,1742333392103,-574.07228118,0.00029715,91]
[356356386,1742333392129,-521213.50674587,0.00029715,30]
[356356387,1742333392153,-871.39617485,0.00029715,30]
[356356388,1742333392177,-1000.0,0.00029715,30]
[356356389,1742333392201,-594.78461445,0.00029715,120]
[356356390,1742333392226,-334.2254669,0.00029715,120]
[356356391,1742333392251,-3379.01107011,0.00029715,120]
[356356392,1742333392275,-735.33095184,0.00029715,30]
[356356393,1742333392299,-1212.34838271,0.00029715,120]
[356356394,1742333392323,-6322.26061338,0.00029715,60]
[356356395,1742333392347,-1077.30389682,0.00029715,30]
[356356396,1742333392372,-534.77792916,0.00029715,30]
[356356397,1742333392397,-484.38465799,0.00029715,30]
[356356398,1742333392422,-500.0,0.00029715,30]
[356356399,1742333392446,-263.7811598,0.00029715,30]
[356356400,1742333392470,-1801.65162236,0.00029715,120]
[356356401,1742333392493,-853.54149173,0.00029715,30]
[356356402,1742333392517,-44438.11566356,0.00029715,30]
[356356403,1742333392542,-861.70517051,0.00029715,30]
[356356404,1742333392567,-982.26036413,0.00029715,90]
[356356405,1742333392591,-928.17797709,0.00029715,30]
[356356406,1742333392614,-62589.07839704,0.00029715,60]
[356356407,1742333392637,-52511.31923969,0.00029715,30]
[356356408,1742333392661,-207.74548929,0.00029715,30]
[356356409,1742333392686,-958.89084345,0.00029715,30]
[356356410,1742333392710,-226.89047481,0.00029715,120]
[356356411,1742333392734,-227.50568246,0.00029715,120]
[356356412,1742333392758,-192.16937039,0.00029715,120]
[356356413,1742333392782,-350.4715167,0.00029715,30]
[356356414,1742333392806,-57455.06773949,0.00029715,60]
[356356415,1742333392831,-701.27079752,0.00029715,120]
[356356416,1742333392855,-276.35721572,0.00029715,30]
[356356417,1742333392882,-205.66418811,0.00029715,30]
[356356418,1742333392920,-189.69919638,0.00029715,120]
[356356419,1742333392946,-259.11740453,0.00029715,120]
[356356420,1742333392972,-182.88386597,0.00029715,120]
[356356421,1742333392997,-738.28634677,0.00029715,120]
[356356422,1742333393022,-354.74847364,0.00029715,120]
[356356423,1742333393048,-1009.71141321,0.00029715,120]
[356356424,1742333393073,-892.90580305,0.00029715,120]
[356356425,1742333393098,-2722.94118175,0.00029715,120]
[356356426,1742333393123,-305.55290727,0.00029715,30]
[356356427,1742333393149,-668.50027102,0.00029715,120]
[356356428,1742333393174,-446.20557068,0.00029715,30]
[356356429,1742333393199,-216.06679806,0.00029715,30]
[356356430,1742333393225,-447.33963505,0.00029715,30]
[356356431,1742333393249,-2272.8526106,0.00029715,120]
[356356432,1742333393274,-1014.78642376,0.00029715,120]
[356356433,1742333393299,-287.06126949,0.00029715,30]
[356356434,1742333393323,-379.72953183,0.00029715,120]
[356356435,1742333393347,-176.27802068,0.00029715,60]
[356356436,1742333393370,-882.02235425,0.00029715,30]
[356356437,1742333393395,-363.73105155,0.00029715,120]
[356356438,1742333393420,-995.40866887,0.00029715,120]
[356356439,1742333393444,-627.12227705,0.00029715,120]
[356356440,1742333393469,-6456.45131266,0.00029715,35]
[356356441,1742333393493,-203.13552927,0.00029715,30]
[356356442,1742333393525,-607.61767742,0.00029715,30]
[356356443,1742333393550,-5527.11384117,0.00029715,120]
[356356444,1742333393576,-278.21264929,0.00029715,120]
[356356445,1742333393602,-266.06763849,0.00029715,30]
[356356446,1742333393626,-517.60212671,0.00029715,45]
[356356447,1742333393651,-307.26807776,0.00029715,30]
[356356448,1742333393677,-384.2386006,0.00029715,120]
[356356449,1742333393702,-31090.86467547,0.00029715,60]
[356356450,1742333393728,-1006.97837921,0.00029715,60]
[356356451,1742333393755,-968.4533264,0.00029715,120]
[356356452,1742333393781,-4237.47678546,0.00029715,120]
[356356453,1742333393806,-4205.68611389,0.00029715,120]
[356356454,1742333393831,-316.90309124,0.00029715,30]
[356356455,1742333393857,-2071.25243128,0.00029715,120]
[356356456,1742333393884,-3105.35096156,0.00029715,30]
[356356457,1742333393913,-183.29207833,0.00029715,120]
[356356458,1742333393939,-425.94411898,0.00029715,30]
[356356459,1742333394311,-375.27752238,0.00029715,120]
[356356460,1742333394336,-182.87175935,0.00029715,120]
[356356469,1742333432289,-150.0,9.852e-05,2]
[356356470,1742333432300,-250.0,9.852e-05,2]
[356356471,1742333432310,-150.0,9.936e-05,2]
[356356472,1742333432320,-250.0,9.936e-05,2]
[356356473,1742333432330,-409.83487687,9.973e-05,2]
[356356474,1742333432341,-100000.0,9.98e-05,2]
[356356475,1742333432351,-152.76826585,9.999e-05,2]
[356356476,1742333432361,-613.27652243,9.999e-05,2]
[356356477,1742333432371,-150.0,0.0001,2]
[356356478,1742333432381,-464249.80505457,0.0001,2]
[356356482,1742333433658,1000.0,0.00029715,30]
[356356483,1742333434127,1000.0,0.00029715,30]
[356356484,1742333435604,1000.0,0.00029715,30]
[356356485,1742333435648,1000.0,0.00029715,30]
[356356486,1742333435999,1000.0,0.00029715,30]
[356356487,1742333436491,1000.0,0.00029715,30]
[356356488,1742333437177,202.17391395,0.00029715,30]
[356356489,1742333437692,672.89461472,0.00029715,30]
[356356490,1742333438036,-328308.70827913,0.0001,2]
[356356491,1742333438046,-415738.76984338,0.0001,2]
[356356492,1742333438058,-405.17512303,0.0001,2]
[356356493,1742333438071,-810.06699986,0.0001,2]
[356356494,1742333438082,-910.783741,0.0001,2]
[356356495,1742333438150,-555.26247137,0.0001,2]
[356356496,1742333438161,-1000.0,0.0001,2]
[356356497,1742333438173,-6586.29727959,0.0001,2]
[356356498,1742333438321,-1476.42,0.0001,2]
[356356499,1742333440236,-318.72088959,0.0001,2]
[356356500,1742333440416,-1104.1250125,0.0001,2]
[356356501,1742333440780,-5369.67217019,0.0001,2]
[356356502,1742333440791,-1915.33993583,0.0001,2]
[356356512,1742333443663,-1014.297339,0.0001,2]
[356356526,1742333446593,-620.81914915,0.0001,2]
[356356529,1742333446608,-277.47805806,0.0001,2]
[356356531,1742333446620,-77513.10594107,0.0001,2]
[356356533,1742333446635,-64246.11526631,0.0001,2]
[356356568,1742333451432,1229.0,0.00029715,120]
[356356570,1742333563691,150.0,0.00029715,30]
[356356571,1742333564579,204.9,0.00029715,30]
[356356572,1742333564616,204.9,0.00029715,30]
[356356573,1742333646925,251.80055619,0.00029715,60]
[356356574,1742333703244,179.19193155,0.00029715,120]
[356356575,1742333704114,1000.0,0.00029715,30]
[356356576,1742333704143,1000.0,0.00029715,30]
[356356578,1742333705316,1000.0,0.00029715,30]
[356356579,1742333705346,1000.0,0.00029715,30]
[356356580,1742333744878,1117.97530097,0.00029715,30]
[356356582,1742333992234,182.87175935,0.00029714,120]
[356356592,1742334437803,300.0,9.6e-05,3]
[356356593,1742334439944,700.0,9.7e-05,3]
[356356594,1742334442263,1100.0,9.8e-05,3]
[356356595,1742334444160,1500.0,9.9e-05,3]
[356356596,1742334446291,1900.0,0.0001,3]
[356356600,1742334632315,-250.0,9e-05,2]
[356356601,1742334632326,-150.0,9.028e-05,2]
[356356602,1742334632335,-250.0,9.056e-05,2]
[356356603,1742334632345,-150.0,9.863e-05,2]
[356356604,1742334632355,-886.0849,9.9e-05,2]
[356356605,1742334632365,-921.1439,9.9e-05,2]
[356356606,1742334632375,-725.5091,9.9e-05,2]
[356356607,1742334632384,-4709.9872,9.9e-05,2]
[356356608,1742334632394,-976.0941,9.9e-05,2]
[356356609,1742334632404,-2876.3213,9.9e-05,2]
[356356610,1742334632413,-226.9758,9.9e-05,2]
[356356611,1742334632423,-190.09132465,9.9e-05,2]
[356356612,1742334632438,-1025.8,9.9e-05,2]
[356356613,1742334632449,-517.87287535,9.9e-05,2]
[356356614,1742334632458,-461.14712465,9.9e-05,2]
[356356615,1742334632475,-1170.40047535,9.9e-05,2]
[356356616,1742334632485,-754.28792466,9.9e-05,2]
[356356617,1742334632505,-429.2254034,9.9e-05,2]
[356356619,1742334639331,-891.25317194,9.9e-05,2]
[356356620,1742334639340,-250.0,9.9e-05,2]
[356356621,1742334639350,-150.0,9.9e-05,2]
[356356622,1742334639361,-250.0,9.9e-05,2]
[356356623,1742334639371,-150.0,9.9e-05,2]
[356356624,1742334639381,-150.0,9.999e-05,2]
[356356625,1742334639390,-682.39108991,0.0001,2]
[356356627,1742334640543,-376358.8535389,0.0001,2]
[356356628,1742334640552,-264.85843999,0.0001,2]
[356356629,1742334640563,-3995564.89285607,0.0001,2]
[356356630,1742334640572,-158.68254029,0.0001,2]
[356356631,1742334640582,-602.81591091,0.0001,2]
[356356632,1742334640592,-2199.15614246,0.0001,2]
[356356633,1742334640601,-1346.43256069,0.0001,2]
[356356634,1742334640611,-1039.9164,0.0001,2]
[356356635,1742334640620,-20597.42,0.0001,2]
[356356636,1742334640632,-273.22325124,0.0001,2]
[356356637,1742334640643,-1997.40431822,0.0001,2]
[356356638,1742334640652,-150.0,0.000101,2]
[356356639,1742334640662,-150.99,0.000101,2]
[356356640,1742334640671,-9999.99,0.000101,2]
[356356641,1742334640681,-9999.99,0.000101,2]
[356356642,1742334640691,-999.99,0.000101,2]
[356356643,1742334640700,-424.83670538,0.00010189,2]
[356356644,1742334640709,-500.0,0.00010466,2]
[356356645,1742334640718,-424.83670538,0.00010467,2]
[356356646,1742334640728,-424.83670538,0.00010814,2]
[356356647,1742334640737,-150.99,0.00010814,2]
[356356648,1742334640746,-165.6654372,0.000109,2]
[356356649,1742334640756,-300.0,0.00011,2]
[356356650,1742334640765,-424.83670538,0.00011009,2]
[356356651,1742334640775,-37508.08929745,0.00011169,2]
[356356652,1742334640785,-295.3555,0.00011224,2]
[356356653,1742334640800,-424.83670538,0.0001142,2]
[356356654,1742334640828,-165.44551485,0.000119,2]
[356356655,1742334640838,-1346.43256056,0.0001216,2]
[356356656,1742334640848,-1039.9164,0.000124,7]
[356356657,1742334640858,-350.0,0.00013,2]
[356356658,1742334640868,-152.2,0.00013,2]
[356356659,1742334640878,-1264.4,0.00013223,2]
[356356660,1742334640887,-150.27,0.00013699,2]